[Event "French-ch U12-U14 2024"]
[Site "Agen"]
[Date "2024.04.15"]
[Round "3.16"]
[White "Borne, Felix"]
[Black "To, Chu"]
[Result "0-1"]
[ECO "E20"]
[WhiteElo "2163"]
[BlackElo "1885"]
[Annotator "RC"]
[PlyCount "102"]
[EventDate "2024.04.14"]
[EventType "swiss"]
[EventCountry "FRA"]
[SourceTitle "playchess.com"]
[Source "ChessBase"]
[SourceQuality "1"]
[TimeControl "5400+30"]

1. d4 {[%emt 0:00:04]} Nf6 {[%emt 0:00:13]} 2. c4 {[%emt 0:00:05]} e6 {[%emt 0:00:09]} 3. Nc3 {[%emt 0:00:05]} Bb4 {[%emt 0:00:21]} 4. f3 {[%emt 0:00:09]} d5 {[%emt 0:02:28]} 5. a3 {[%emt 0:00:13]} Bxc3+ {[%emt 0:00:42]} 6. bxc3 {[%emt 0:00:07]} h6 {[%emt 0:03:20]} 7. cxd5 {[%emt 0:08:54]} exd5 {[%emt 0:01:52]} 8. e3 {[%emt 0:00:34]} O-O {[%emt 0:04:57]} 9. Bd3 {[%emt 0:04:37]} c5 {[%emt 0:04:45]} 10. Ne2 {[%emt 0:00:54]} Nc6 {[%emt 0:01:05]} 11. O-O {[%emt 0:03:19]} Re8 {[%emt 0:10:54]} 12. Re1 {[%emt 0:06:55]} Ne7 {[%emt 0:05:52]} 13. Ng3 {[%emt 0:11:46]} Bd7 {[%emt 0:06:27]} 14. e4 {[%emt 0:07:31]} dxe4 {[%emt 0:02:56]} 15. fxe4 {[%emt 0:00:11]} cxd4 {[%emt 0:04:40]} 16. cxd4 {[%emt 0:01:24]} Bg4 {[%emt 0:03:06]} 17. Qa4 {[%emt 0:00:40]} Ned5 {[%emt 0:07:45]} 18. Bb2 {[%emt 0:05:51]} Nf4 {[%emt 0:02:59]} 19. Bc4 {[%emt 0:02:30]} Qb6 {[%emt 0:09:13]} 20. Rab1 {[%emt 0:03:27]} Rac8 {[%emt 0:05:03]} 21. Ba1 {[%emt 0:03:39]} Bd7 {[%emt 0:04:29]} 22. Qb3 {[%emt 0:03:51]} Qxb3 {[%emt 0:00:37]} 23. Bxb3 {[%emt 0:00:01]} Bc6 {[%emt 0:10:31]} 24. d5 {[%emt 0:03:28]} Bb5 {[%emt 0:00:14]} 25. Bxf6 {[%emt 0:01:25]} gxf6 {[%emt 0:00:07]} 26. Nf5 {[%emt 0:00:33]} Bd3 {[%emt 0:01:19]} 27. Rbd1 {[%emt 0:02:14]} Rc3 {[%emt 0:01:27]} 28. Ba4 {[%emt 0:00:49]} b5 {[%emt 0:01:29]} 29. Rxd3 {[%emt 0:03:01]} Nxd3 {[%emt 0:00:10]} 30. Bxb5 {[%emt 0:00:06]} Rxe4 {[%emt 0:01:15]} 31. Rd1 {[%emt 0:05:43]} Nb2 {[%emt 0:02:35]} 32. Rd2 {[%emt 0:00:20]} Rc1+ {[%emt 0:01:01]} 33. Kf2 {[%emt 0:00:40]} Rf4+ {[%emt 0:00:08]} 34. Ke3 {[%emt 0:05:00]} Rxf5 {[%emt 0:00:05]} 35. Rxb2 {[%emt 0:00:08]} Rxd5 {[%emt 0:00:08]} 36. a4 {[%emt 0:00:14]} Re1+ {[%emt 0:00:44]} 37. Kf2 {[%emt 0:00:31]} Re7 {[%emt 0:00:22]} 38. g3 {[%emt 0:02:05]} Rd6 {[%emt 0:00:08]} 39. Bf1 {[%emt 0:04:11]} Rb6 {[%emt 0:00:32]} 40. Rc2 {[%emt 0:00:55]} Re5 {[%emt 0:00:46]} 41. Rc8+ {[%emt 0:00:50]} Kg7 {[%emt 0:00:15]} 42. Bc4 {[%emt 0:04:08]} Re7 {[%emt 0:01:40]} 43. Kf3 {[%emt 0:03:20]} Rbb7 {[%emt 0:01:12]} 44. Bb5 {[%emt 0:00:39]} Rbc7 {[%emt 0:00:19]} 45. Ra8 {[%emt 0:00:18]} Rc3+ {[%emt 0:00:44]} 46. Kf4 {[%emt 0:00:39]} Rc2 {[%emt 0:00:29]} 47. h4 {[%emt 0:00:44]} h5 {[%emt 0:00:57]} 48. Kf3 {[%emt 0:00:23]} Rc3+ {[%emt 0:00:16]} 49. Kf2 {[%emt 0:01:21]} f5 {[%emt 0:00:37]} 50. Bf1 {[%emt 0:03:13]} Ra3 {[%emt 0:00:44]} 51. Bb5 {[%emt 0:00:05]} Rc7 {[%emt 0:01:53]} 0-1

[Event "French-ch U12-U14 2024"]
[Site "Agen"]
[Date "2024.04.15"]
[Round "3.17"]
[White "Roche, Virgile"]
[Black "Auribault, Louis"]
[Result "0-1"]
[ECO "C26"]
[WhiteElo "1878"]
[BlackElo "2137"]
[Annotator "NA RC"]
[PlyCount "72"]
[EventDate "2024.04.14"]
[EventType "swiss"]
[EventCountry "FRA"]
[SourceTitle "playchess.com"]
[Source "ChessBase"]
[SourceQuality "1"]
[TimeControl "5400+30"]

1. e4 {[%emt 0:00:38]} e5 {[%emt 0:00:05]} 2. Nc3 {[%emt 0:00:26]} Nf6 {[%emt 0:00:14]} 3. d4 {[%emt 0:01:35]} exd4 {[%emt 0:01:12]} 4. Qxd4 {[%emt 0:00:19]} Nc6 {[%emt 0:00:08]} 5. Qd3 {[%emt 0:01:55]} Bc5 {[%emt 0:04:04]} 6. Bf4 {[%emt 0:02:55]} O-O {[%emt 0:04:46]} 7. O-O-O {[%emt 0:03:46]} Ng4 {[%emt 0:04:09]} 8. Nh3 {[%emt 0:10:33]} d6 {[%emt 0:00:45]} 9. f3 {[%emt 0:05:46]} Nge5 {[%emt 0:00:19]} 10. Bxe5 {[%emt 0:03:10]} Nxe5 {[%emt 0:00:06]} 11. Qe2 {[%emt 0:00:57]} Qh4 {[%emt 0:04:20]} 12. Kb1 {[%emt 0:04:48]} a6 {[%emt 0:05:54]} 13. g3 {[%emt 0:04:28]} Qh5 {[%emt 0:02:14]} 14. g4 {[%emt 0:04:56]} Nxg4 {[%emt 0:04:32]} 15. fxg4 {[%emt 0:00:11]} Bxg4 {[%emt 0:00:02]} 16. Qd3 {[%emt 0:01:13]} Bxd1 {[%emt 0:00:24]} 17. Qxd1 {[%emt 0:07:58]} Qh4 {[%emt 0:02:57]} 18. Qd2 {[%emt 0:05:47]} d5 {[%emt 0:10:51]} 19. exd5 {[%emt 0:07:32]} Rae8 {[%emt 0:00:24]} 20. Bg2 {[%emt 0:00:49]} Be3 {[%emt 0:02:02]} 21. Qd3 {[%emt 0:04:15]} Qg4 {[%emt 0:00:17]} 22. Qf1 {[%emt 0:01:07]} Qb4 {[%emt 0:09:10]} 23. a3 {[%emt 0:01:59]} Qb6 {[%emt 0:00:15]} 24. Nf4 {[%emt 0:02:28]} Bd4 {[%emt 0:00:45]} 25. Qc4 {[%emt 0:02:02]} Re3 {[%emt 0:01:22]} 26. Nd3 {[%emt 0:01:50]} Rfe8 {[%emt 0:02:27]} 27. Na4 {[%emt 0:01:38]} Qg6 {[%emt 0:01:33]} 28. Qxd4 {[%emt 0:07:12]} Qxg2 {[%emt 0:00:21]} 29. Rc1 {[%emt 0:01:42]} R3e4 {[%emt 0:00:45]} 30. Qc5 {[%emt 0:01:11]} Rxa4 {[%emt 0:01:46]} 31. c4 {[%emt 0:01:13]} Qe4 {[%emt 0:00:53]} 32. Rc3 {[%emt 0:00:22]} b5 {[%emt 0:00:33]} 33. b3 {[%emt 0:01:03]} bxc4 {[%emt 0:00:14]} 34. bxa4 {[%emt 0:00:36]} cxd3 {[%emt 0:00:06]} 35. Qc4 {[%emt 0:01:04]} d2+ {[%emt 0:00:06]} 36. Qxe4 {[%emt 0:00:27]} d1=Q+ {[%emt 0:00:06]} 0-1

[Event "French-ch U12-U14 2024"]
[Site "Agen"]
[Date "2024.04.15"]
[Round "3.19"]
[White "Nouvel, Jehan"]
[Black "Charlier, Antoine"]
[Result "0-1"]
[ECO "C58"]
[WhiteElo "1868"]
[BlackElo "2053"]
[Annotator "NA RC"]
[PlyCount "78"]
[EventDate "2024.04.14"]
[EventType "swiss"]
[EventCountry "FRA"]
[SourceTitle "playchess.com"]
[Source "ChessBase"]
[SourceQuality "1"]
[TimeControl "5400+30"]

1. e4 {[%emt 0:00:25]} e5 {[%emt 0:00:40]} 2. Nf3 {[%emt 0:00:43]} Nc6 {[%emt 0:00:11]} 3. Bc4 {[%emt 0:00:27]} Nf6 {[%emt 0:00:41]} 4. Ng5 {[%emt 0:00:58]} d5 {[%emt 0:01:08]} 5. exd5 {[%emt 0:00:25]} Na5 {[%emt 0:01:13]} 6. Bb5+ {[%emt 0:00:52]} c6 {[%emt 0:00:17]} 7. dxc6 {[%emt 0:00:06]} bxc6 {[%emt 0:00:19]} 8. Bd3 {[%emt 0:00:06]} Nd5 {[%emt 0:00:40]} 9. Nf3 {[%emt 0:01:42]} Bd6 {[%emt 0:00:55]} 10. O-O {[%emt 0:00:25]} Nf4 {[%emt 0:01:16]} 11. Re1 {[%emt 0:03:59]} Nxd3 {[%emt 0:03:36]} 12. cxd3 {[%emt 0:00:08]} O-O {[%emt 0:03:40]} 13. b3 {[%emt 0:01:26]} Re8 {[%emt 0:09:37]} 14. Bb2 {[%emt 0:02:33]} Bg4 {[%emt 0:12:32]} 15. Nc3 {[%emt 0:13:01]} f5 {[%emt 0:03:06]} 16. Qe2 {[%emt 0:03:03]} Nb7 {[%emt 0:11:01]} 17. d4 {[%emt 0:12:35]} e4 {[%emt 0:09:09]} 18. Qc4+ {[%emt 0:03:12]} Kh8 {[%emt 0:00:08]} 19. Ne5 {[%emt 0:00:47]} Bxe5 {[%emt 0:03:03]} 20. dxe5 {[%emt 0:00:08]} Qxd2 {[%emt 0:06:05]} 21. Na4 {[%emt 0:07:14]} Nd8 {[%emt 0:06:30]} 22. h3 {[%emt 0:11:16]} Bh5 {[%emt 0:00:35]} 23. g4 {[%emt 0:02:32]} fxg4 {[%emt 0:06:48]} 24. Qxe4 {[%emt 0:04:59]} Rf8 {[%emt 0:03:17]} 25. Re2 {[%emt 0:06:27]} Qg5 {[%emt 0:00:19]} 26. Bc1 {[%emt 0:00:10]} Qh4 {[%emt 0:03:09]} 27. hxg4 {[%emt 0:09:22]} Bg6 {[%emt 0:06:02]} 28. Qg2 {[%emt 0:02:23]} Ne6 {[%emt 0:00:09]} 29. Be3 {[%emt 0:00:38]} Rf4 {[%emt 0:04:22]} 30. f3 {[%emt 0:01:46]} Raf8 {[%emt 0:02:08]} 31. Rf2 {[%emt 0:01:50]} Be4 {[%emt 0:01:37]} 32. Bxf4 {[%emt 0:01:29]} Nxf4 {[%emt 0:00:30]} 33. fxe4 {[%emt 0:02:23]} Nh3+ {[%emt 0:00:07]} 34. Qxh3 {[%emt 0:00:31]} Qxf2+ {[%emt 0:00:05]} 35. Kh1 {[%emt 0:00:07]} Rf3 {[%emt 0:00:10]} 36. Qh2 {[%emt 0:00:57]} Qe3 {[%emt 0:00:11]} 37. Rd1 {[%emt 0:01:14]} h6 {[%emt 0:00:24]} 38. Qg1 {[%emt 0:05:39]} Rh3+ {[%emt 0:00:10]} 39. Kg2 {[%emt 0:00:03]} Qf3# {[%emt 0:04:10]} 0-1

[Event "French-ch U12-U14 2024"]
[Site "Agen"]
[Date "2024.04.15"]
[Round "3.20"]
[White "Bonelli Maestracci, Pierre Joseph"]
[Black "Wang, Eliot"]
[Result "1-0"]
[ECO "B22"]
[WhiteElo "2044"]
[BlackElo "1872"]
[Annotator "NA RC"]
[PlyCount "59"]
[EventDate "2024.04.14"]
[EventType "swiss"]
[EventCountry "FRA"]
[SourceTitle "playchess.com"]
[Source "ChessBase"]
[SourceQuality "1"]
[TimeControl "5400+30"]

1. e4 {[%emt 0:00:02]} c5 {[%emt 0:00:02]} 2. c3 {[%emt 0:00:07]} d5 {[%emt 0:00:04]} 3. exd5 {[%emt 0:00:08]} Qxd5 {[%emt 0:00:04]} 4. d4 {[%emt 0:00:12]} Nf6 {[%emt 0:00:05]} 5. Nf3 {[%emt 0:00:17]} Nc6 {[%emt 0:00:07]} 6. Be2 {[%emt 0:02:20]} e6 {[%emt 0:00:09]} 7. Na3 {[%emt 0:00:33]} a6 {[%emt 0:00:43]} 8. Nc4 {[%emt 0:07:16]} Qd8 {[%emt 0:00:07]} 9. Be3 {[%emt 0:08:54]} b5 {[%emt 0:01:08]} 10. Nce5 {[%emt 0:01:45]} Bb7 {[%emt 0:03:15]} 11. Nxc6 {[%emt 0:06:02]} Bxc6 {[%emt 0:00:06]} 12. dxc5 {[%emt 0:00:19]} Qc7 {[%emt 0:01:21]} 13. b4 {[%emt 0:02:35]} Be7 {[%emt 0:04:01]} 14. Qc1 {[%emt 0:03:24]} Nd5 {[%emt 0:01:27]} 15. O-O {[%emt 0:02:16]} O-O {[%emt 0:01:25]} 16. Nd4 {[%emt 0:02:38]} a5 {[%emt 0:06:06]} 17. a4 {[%emt 0:08:17]} axb4 {[%emt 0:05:15]} 18. Nxc6 {[%emt 0:52:25]} Qxc6 {[%emt 0:00:22]} 19. axb5 {[%emt 0:00:00]} Rxa1 {[%emt 0:01:53]} 20. Qxa1 {[%emt 0:00:00]} Qc7 {[%emt 0:01:27]} 21. cxb4 {[%emt 0:00:00]} Nxe3 {[%emt 0:01:04]} 22. fxe3 {[%emt 0:00:00]} Bf6 {[%emt 0:00:29]} 23. Rxf6 {[%emt 0:00:00]} gxf6 {[%emt 0:00:05]} 24. Qxf6 {[%emt 0:00:00]} Qa7 {[%emt 0:01:49]} 25. b6 {[%emt 0:00:00]} Qa2 {[%emt 0:00:32]} 26. Kf2 {[%emt 0:00:00]} Qb1 {[%emt 0:00:46]} 27. Qf4 {[%emt 0:00:00]} f6 {[%emt 0:02:18]} 28. b7 {[%emt 0:00:00]} e5 {[%emt 0:00:20]} 29. Qg4+ {[%emt 0:00:00]} Kh8 {[%emt 0:00:06]} 30. Qc8 {[%emt 0:00:00]} 1-0

[Event "French-ch U12-U14 2024"]
[Site "Agen"]
[Date "2024.04.16"]
[Round "4.1"]
[White "Alcantara, Levanah"]
[Black "Pierrot, Anais"]
[Result "1-0"]
[ECO "D88"]
[WhiteElo "1756"]
[BlackElo "1593"]
[Annotator "NA RC"]
[PlyCount "91"]
[EventDate "2024.04.14"]
[EventType "swiss"]
[EventCountry "FRA"]
[SourceTitle "playchess.com"]
[Source "ChessBase"]
[SourceQuality "1"]
[TimeControl "5400+30"]

1. d4 {[%emt 0:00:09]} Nf6 {[%emt 0:00:09]} 2. c4 {[%emt 0:00:06]} g6 {[%emt 0:00:11]} 3. Nc3 {[%emt 0:00:07]} d5 {[%emt 0:00:22]} 4. cxd5 {[%emt 0:00:13]} Nxd5 {[%emt 0:00:11]} 5. e4 {[%emt 0:00:08]} Nxc3 {[%emt 0:00:17]} 6. bxc3 {[%emt 0:00:08]} Bg7 {[%emt 0:00:21]} 7. Bc4 {[%emt 0:00:11]} c5 {[%emt 0:00:46]} 8. Ne2 {[%emt 0:00:18]} O-O {[%emt 0:00:22]} 9. O-O {[%emt 0:00:15]} Nc6 {[%emt 0:01:11]} 10. Be3 {[%emt 0:00:13]} b6 {[%emt 0:04:44]} 11. f3 {[%emt 0:01:16]} cxd4 {[%emt 0:06:50]} 12. cxd4 {[%emt 0:00:45]} Bb7 {[%emt 0:00:56]} 13. Rc1 {[%emt 0:01:05]} Rc8 {[%emt 0:04:06]} 14. Qd2 {[%emt 0:03:02]} Re8 {[%emt 0:02:57]} 15. Rfd1 {[%emt 0:07:01]} Na5 {[%emt 0:08:32]} 16. Bb5 {[%emt 0:10:24]} Bc6 {[%emt 0:07:23]} 17. Bd3 {[%emt 0:01:25]} Qd7 {[%emt 0:02:13]} 18. Rc3 {[%emt 0:06:39]} Bb7 {[%emt 0:11:04]} 19. Rdc1 {[%emt 0:03:44]} Rxc3 {[%emt 0:04:30]} 20. Rxc3 {[%emt 0:01:10]} Rc8 {[%emt 0:01:17]} 21. Qc1 {[%emt 0:12:54]} Rxc3 {[%emt 0:10:13]} 22. Qxc3 {[%emt 0:00:26]} Qc6 {[%emt 0:01:11]} 23. Qb4 {[%emt 0:02:02]} Qd7 {[%emt 0:06:38]} 24. d5 {[%emt 0:08:09]} Qc7 {[%emt 0:12:28]} 25. Bf4 {[%emt 0:03:56]} Be5 {[%emt 0:01:39]} 26. Bxe5 {[%emt 0:02:08]} Qxe5 {[%emt 0:00:14]} 27. Qd4 {[%emt 0:02:04]} Qd6 {[%emt 0:01:30]} 28. Qc3 {[%emt 0:05:22]} e6 {[%emt 0:02:34]} 29. dxe6 {[%emt 0:05:05]} Qxe6 {[%emt 0:00:21]} 30. a3 {[%emt 0:00:58]} Qc6 {[%emt 0:01:32]} 31. Qe5 {[%emt 0:03:16]} Qc8 {[%emt 0:02:09]} 32. h3 {[%emt 0:01:32]} Ba6 {[%emt 0:01:21]} 33. Bxa6 {[%emt 0:01:26]} Qxa6 {[%emt 0:00:03]} 34. Nc3 {[%emt 0:01:43]} Nc4 {[%emt 0:01:53]} 35. Qe8+ {[%emt 0:00:55]} Kg7 {[%emt 0:00:11]} 36. a4 {[%emt 0:00:05]} Qa5 {[%emt 0:00:34]} 37. Nd5 {[%emt 0:00:42]} Qc5+ {[%emt 0:01:04]} 38. Kh1 {[%emt 0:00:46]} Qf2 {[%emt 0:03:33]} 39. Qc6 {[%emt 0:02:58]} Qd4 {[%emt 0:00:51]} 40. h4 {[%emt 0:02:40]} h5 {[%emt 0:00:48]} 41. Qc7 {[%emt 0:01:53]} Qa1+ {[%emt 0:00:40]} 42. Kh2 {[%emt 0:00:26]} Qxa4 {[%emt 0:00:12]} 43. Qe7 {[%emt 0:00:51]} Qa1 {[%emt 0:00:34]} 44. f4 {[%emt 0:00:36]} Qd4 {[%emt 0:01:18]} 45. Nc7 {[%emt 0:02:46]} Qf6 {[%emt 0:00:21]} 46. Ne8+ {[%emt 0:09:32]} 1-0

[Event "French-ch U12-U14 2024"]
[Site "Agen"]
[Date "2024.04.16"]
[Round "4.4"]
[White "Gillet, Astrik"]
[Black "Benhadid, Jeilynn"]
[Result "0-1"]
[ECO "A06"]
[WhiteElo "1527"]
[BlackElo "1844"]
[Annotator "NA RC"]
[PlyCount "108"]
[EventDate "2024.04.14"]
[EventType "swiss"]
[EventCountry "FRA"]
[SourceTitle "playchess.com"]
[Source "ChessBase"]
[SourceQuality "1"]
[TimeControl "5400+30"]

1. Nf3 {[%emt 0:00:30]} Nf6 {[%emt 0:00:26]} 2. b3 {[%emt 0:00:26]} e6 {[%emt 0:00:41]} 3. Bb2 {[%emt 0:00:57]} d5 {[%emt 0:00:32]} 4. e3 {[%emt 0:00:52]} c5 {[%emt 0:01:40]} 5. Bb5+ {[%emt 0:01:37]} Bd7 {[%emt 0:03:17]} 6. Bxd7+ {[%emt 0:02:21]} Nbxd7 {[%emt 0:00:15]} 7. Ne5 {[%emt 0:00:44]} Be7 {[%emt 0:02:41]} 8. O-O {[%emt 0:02:36]} Nxe5 {[%emt 0:03:21]} 9. Bxe5 {[%emt 0:00:45]} O-O {[%emt 0:00:41]} 10. d3 {[%emt 0:01:17]} Rc8 {[%emt 0:03:14]} 11. Nd2 {[%emt 0:01:01]} Qd7 {[%emt 0:07:02]} 12. f4 {[%emt 0:03:19]} b5 {[%emt 0:07:14]} 13. c4 {[%emt 0:03:21]} dxc4 {[%emt 0:07:45]} 14. dxc4 {[%emt 0:00:12]} Rfd8 {[%emt 0:00:15]} 15. Nf3 {[%emt 0:02:22]} bxc4 {[%emt 0:01:50]} 16. Qxd7 {[%emt 0:01:18]} Rxd7 {[%emt 0:00:10]} 17. bxc4 {[%emt 0:00:12]} Ng4 {[%emt 0:00:33]} 18. Rfe1 {[%emt 0:00:58]} Nxe5 {[%emt 0:03:30]} 19. Nxe5 {[%emt 0:00:27]} Rd2 {[%emt 0:08:56]} 20. Red1 {[%emt 0:01:21]} Rcd8 {[%emt 0:13:31]} 21. Rxd2 {[%emt 0:01:16]} Rxd2 {[%emt 0:00:18]} 22. Nc6 {[%emt 0:00:12]} Bf6 {[%emt 0:01:34]} 23. Rb1 {[%emt 0:00:30]} g5 {[%emt 0:02:48]} 24. Nxa7 {[%emt 0:04:12]} Rxa2 {[%emt 0:00:30]} 25. Nb5 {[%emt 0:00:38]} Rc2 {[%emt 0:06:50]} 26. Nd6 {[%emt 0:03:40]} gxf4 {[%emt 0:02:41]} 27. exf4 {[%emt 0:00:57]} Be7 {[%emt 0:01:05]} 28. Nb5 {[%emt 0:03:37]} Rxc4 {[%emt 0:01:09]} 29. g3 {[%emt 0:00:59]} Rb4 {[%emt 0:01:51]} 30. Rxb4 {[%emt 0:00:27]} cxb4 {[%emt 0:00:06]} 31. Nd4 {[%emt 0:00:08]} Bc5 {[%emt 0:00:07]} 32. Kf1 {[%emt 0:00:24]} Bxd4 {[%emt 0:00:08]} 33. Ke2 {[%emt 0:00:25]} b3 {[%emt 0:00:31]} 34. Kd2 {[%emt 0:00:16]} b2 {[%emt 0:00:26]} 35. Kc2 {[%emt 0:00:09]} Kg7 {[%emt 0:00:17]} 36. h3 {[%emt 0:00:21]} Kf6 {[%emt 0:00:10]} 37. g4 {[%emt 0:00:09]} e5 {[%emt 0:00:20]} 38. fxe5+ {[%emt 0:00:21]} Kxe5 {[%emt 0:00:06]} 39. h4 {[%emt 0:00:10]} Kf4 {[%emt 0:00:06]} 40. g5 {[%emt 0:00:15]} Kg4 {[%emt 0:00:06]} 41. h5 {[%emt 0:00:19]} Kxh5 {[%emt 0:00:10]} 42. Kb1 {[%emt 0:00:05]} Kxg5 {[%emt 0:00:07]} 43. Kc2 {[%emt 0:00:05]} h5 {[%emt 0:00:17]} 44. Kb1 {[%emt 0:00:08]} h4 {[%emt 0:00:08]} 45. Kc2 {[%emt 0:00:03]} h3 {[%emt 0:00:06]} 46. Kb1 {[%emt 0:00:04]} h2 {[%emt 0:00:04]} 47. Kc2 {[%emt 0:00:02]} h1=Q {[%emt 0:00:10]} 48. Kd3 {[%emt 0:00:09]} Qe1 {[%emt 0:00:20]} 49. Kxd4 {[%emt 0:00:12]} b1=Q {[%emt 0:00:15]} 50. Kd5 {[%emt 0:00:07]} Qd3+ {[%emt 0:00:06]} 51. Kc5 {[%emt 0:00:11]} Qc1+ {[%emt 0:00:09]} 52. Kb4 {[%emt 0:00:04]} Qdb1+ {[%emt 0:00:16]} 53. Ka4 {[%emt 0:00:09]} Qc4+ {[%emt 0:00:13]} 54. Ka5 {[%emt 0:00:10]} Qcb5# {[%emt 0:00:10]} 0-1

[Event "French-ch U12-U14 2024"]
[Site "Agen"]
[Date "2024.04.16"]
[Round "4.5"]
[White "Suroy, Emma"]
[Black "Le Floch, Alexia"]
[Result "0-1"]
[ECO "B50"]
[WhiteElo "1512"]
[BlackElo "1641"]
[Annotator "NA RC"]
[PlyCount "66"]
[EventDate "2024.04.14"]
[EventType "swiss"]
[EventCountry "FRA"]
[SourceTitle "playchess.com"]
[Source "ChessBase"]
[SourceQuality "1"]
[TimeControl "5400+30"]

1. e4 {[%emt 0:00:02]} c5 {[%emt 0:00:05]} 2. Nf3 {[%emt 0:00:07]} d6 {[%emt 0:00:10]} 3. Bc4 {[%emt 0:00:09]} Nf6 {[%emt 0:00:19]} 4. d3 {[%emt 0:00:18]} e6 {[%emt 0:00:29]} 5. O-O {[%emt 0:00:28]} Be7 {[%emt 0:00:19]} 6. Nc3 {[%emt 0:01:13]} O-O {[%emt 0:00:17]} 7. e5 {[%emt 0:04:25]} dxe5 {[%emt 0:02:49]} 8. Nxe5 {[%emt 0:00:13]} Qc7 {[%emt 0:02:55]} 9. Re1 {[%emt 0:06:49]} a6 {[%emt 0:02:23]} 10. a4 {[%emt 0:04:34]} b6 {[%emt 0:01:50]} 11. Bf4 {[%emt 0:07:08]} Bd6 {[%emt 0:02:37]} 12. Bb3 {[%emt 0:10:21]} Nc6 {[%emt 0:03:01]} 13. Qe2 {[%emt 0:05:42]} Bb7 {[%emt 0:02:29]} 14. Nxc6 {[%emt 0:04:08]} Qxc6 {[%emt 0:00:43]} 15. Ne4 {[%emt 0:19:06]} Nxe4 {[%emt 0:04:30]} 16. Qxe4 {[%emt 0:00:08]} Bxf4 {[%emt 0:04:13]} 17. Qxc6 {[%emt 0:01:20]} Bxc6 {[%emt 0:00:11]} 18. c4 {[%emt 0:03:08]} b5 {[%emt 0:06:12]} 19. cxb5 {[%emt 0:03:57]} axb5 {[%emt 0:00:18]} 20. axb5 {[%emt 0:00:09]} Bxb5 {[%emt 0:02:00]} 21. Rad1 {[%emt 0:02:44]} Rfd8 {[%emt 0:01:10]} 22. Bc2 {[%emt 0:00:54]} Ra2 {[%emt 0:02:09]} 23. Ra1 {[%emt 0:04:55]} Rxb2 {[%emt 0:01:06]} 24. Bb1 {[%emt 0:00:07]} g6 {[%emt 0:03:21]} 25. Rd1 {[%emt 0:01:41]} c4 {[%emt 0:00:28]} 26. d4 {[%emt 0:00:43]} c3 {[%emt 0:00:16]} 27. g3 {[%emt 0:04:56]} Bd2 {[%emt 0:01:10]} 28. Be4 {[%emt 0:01:41]} Rxd4 {[%emt 0:03:10]} 29. Bb1 {[%emt 0:03:07]} Be2 {[%emt 0:00:54]} 30. Rxd2 {[%emt 0:02:00]} cxd2 {[%emt 0:00:11]} 31. Ba2 {[%emt 0:00:50]} Rxa2 {[%emt 0:00:25]} 32. Rxa2 {[%emt 0:00:13]} d1=Q+ {[%emt 0:00:07]} 33. Kg2 {[%emt 0:00:15]} Qf1# {[%emt 0:00:13]} 0-1

[Event "French-ch U12-U14 2024"]
[Site "Agen"]
[Date "2024.04.16"]
[Round "4.8"]
[White "Nott Peralta, Gabriel"]
[Black "Aeschbacher, Dimitri"]
[Result "0-1"]
[ECO "D05"]
[WhiteElo "1806"]
[BlackElo "1959"]
[Annotator "NA RC"]
[PlyCount "92"]
[EventDate "2024.04.14"]
[EventType "swiss"]
[EventCountry "FRA"]
[SourceTitle "playchess.com"]
[Source "ChessBase"]
[SourceQuality "1"]
[TimeControl "5400+30"]

1. d4 {[%emt 0:00:03]} Nf6 {[%emt 0:00:07]} 2. Nf3 {[%emt 0:00:13]} e6 {[%emt 0:00:05]} 3. e3 {[%emt 0:00:16]} c5 {[%emt 0:00:18]} 4. Bd3 {[%emt 0:01:27]} d5 {[%emt 0:00:15]} 5. b3 {[%emt 0:00:30]} Nc6 {[%emt 0:00:14]} 6. Bb2 {[%emt 0:01:02]} Bd6 {[%emt 0:00:10]} 7. a3 {[%emt 0:00:15]} O-O {[%emt 0:00:14]} 8. Nbd2 {[%emt 0:00:19]} b6 {[%emt 0:00:10]} 9. O-O {[%emt 0:02:10]} Bb7 {[%emt 0:01:57]} 10. Qe2 {[%emt 0:08:48]} Bc7 {[%emt 0:01:43]} 11. Ne5 {[%emt 0:09:22]} Ne7 {[%emt 0:02:02]} 12. f4 {[%emt 0:04:23]} Ne4 {[%emt 0:00:56]} 13. Rad1 {[%emt 0:06:16]} f6 {[%emt 0:01:00]} 14. Ng4 {[%emt 0:01:07]} f5 {[%emt 0:01:48]} 15. Ne5 {[%emt 0:01:41]} Bxe5 {[%emt 0:02:01]} 16. fxe5 {[%emt 0:00:44]} Nxd2 {[%emt 0:02:16]} 17. Qxd2 {[%emt 0:01:40]} Qc7 {[%emt 0:00:41]} 18. Qe2 {[%emt 0:06:21]} Rac8 {[%emt 0:01:18]} 19. c4 {[%emt 0:00:44]} dxc4 {[%emt 0:01:44]} 20. Bxc4 {[%emt 0:00:16]} Bd5 {[%emt 0:00:49]} 21. Bxd5 {[%emt 0:00:25]} Nxd5 {[%emt 0:00:09]} 22. Rc1 {[%emt 0:01:56]} Qe7 {[%emt 0:01:11]} 23. Rfd1 {[%emt 0:03:07]} cxd4 {[%emt 0:01:58]} 24. exd4 {[%emt 0:00:25]} f4 {[%emt 0:00:47]} 25. Rxc8 {[%emt 0:04:07]} Rxc8 {[%emt 0:00:07]} 26. Rc1 {[%emt 0:00:28]} Rf8 {[%emt 0:02:08]} 27. Qf3 {[%emt 0:01:34]} Qh4 {[%emt 0:01:56]} 28. Qf2 {[%emt 0:08:07]} Qg5 {[%emt 0:00:36]} 29. Qf3 {[%emt 0:00:23]} Qf5 {[%emt 0:00:27]} 30. a4 {[%emt 0:02:20]} g5 {[%emt 0:08:10]} 31. h3 {[%emt 0:02:16]} Qg6 {[%emt 0:01:11]} 32. Ba3 {[%emt 0:05:28]} Rd8 {[%emt 0:01:41]} 33. g3 {[%emt 0:04:41]} fxg3 {[%emt 0:01:02]} 34. Qxg3 {[%emt 0:00:30]} Nf4 {[%emt 0:00:52]} 35. Qe3 {[%emt 0:03:15]} Qh5 {[%emt 0:05:07]} 36. Kh2 {[%emt 0:07:20]} Rxd4 {[%emt 0:01:21]} 37. Rc8+ {[%emt 0:03:40]} Kg7 {[%emt 0:01:21]} 38. Rc7+ {[%emt 0:00:43]} Kg6 {[%emt 0:00:09]} 39. Bf8 {[%emt 0:02:02]} Kf5 {[%emt 0:02:49]} 40. Rc4 {[%emt 0:02:07]} Rxc4 {[%emt 0:00:54]} 41. bxc4 {[%emt 0:00:12]} g4 {[%emt 0:00:49]} 42. Bb4 {[%emt 0:02:44]} Qxh3+ {[%emt 0:04:22]} 43. Qxh3 {[%emt 0:00:06]} Nxh3 {[%emt 0:00:05]} 44. c5 {[%emt 0:00:54]} bxc5 {[%emt 0:00:17]} 45. Bxc5 {[%emt 0:00:05]} a6 {[%emt 0:00:05]} 46. Kg3 {[%emt 0:01:10]} Ng5 {[%emt 0:00:09]} 0-1